Cogmind - Beta 13 @@@ ROGUE MODE // 2024.05.05 @ 13:51:37 Player: Barbarossa Result: Self-destructed Performance ------------- Evolutions (2) 1000 Regions Visited (3) 600 Robots Destroyed (14) 70 Value Destroyed (355) 355 Prototype IDs (1) 20 Alien Tech Used (0) 0 Bonus (0) 0 TOTAL SCORE: 2045 Bonus ------- None Cogmind --------- Core Integrity 381/550 Matter 74/300 Energy 8/100 System Corruption 0% Temperature Cool (9) Movement Flying (105) Ox1 Location -8/Materials Parts ------- > --- POWER (1) -------- (None) > --- PROPULSION (4) --- Flight Unit Improved VTOL Module > --- UTILITY (4) ------ Improved Heat Sink Signal Interpreter ECM Suite > --- WEAPON (2) ------- Heavy Laser > --- INVENTORY (5) ---- Wheel Wheel Hacking Suite Field Laser Light Assault Rifle Peak State ------------ > --- POWER ------------ Light Angular Momentum Engine > --- PROPULSION ------- Flight Unit Flight Unit Improved VTOL Module > --- UTILITY ---------- Improved Heat Sink Signal Interpreter ECM Suite > --- WEAPON ----------- Field Laser Autogun > --- INVENTORY -------- Wheel Wheel Hacking Suite Heavy Laser Light Assault Rifle [Rating: 22] Favorites ----------- Power Light Ion Engine Engine Light Ion Engine Propulsion Flight Unit Leg Aluminum Leg Wheel Wheel Hover Unit Hover Unit Flight Unit Flight Unit Utility Signal Interpreter Device ECM Suite Storage Small Storage Unit Processor Signal Interpreter Weapon Autogun Energy Gun Small Laser Ballistic Gun Autogun Build | -11 -10 -9 -8 ------- Run | Yrd Mat Mat Mat Slots Evolved 4 | . . 2 2 Power . | . . . . Propulsion 2 | . . 2 . Utility 2 | . . . 2 Weapon . | . . . . Parts Attached 27 | . 14 1 12 Power 4 | . 2 . 2 Engine 4 | . 2 . 2 Core . | . . . . Reactor . | . . . . Propulsion 12 | . 6 . 6 Treads . | . . . . Leg 1 | . . . 1 Wheel 2 | . 2 . . Hover 2 | . 2 . . Flight 7 | . 2 . 5 Utility 7 | . 5 . 2 Device 5 | . 3 . 2 Storage 1 | . 1 . . Processor 1 | . 1 . . Hackware . | . . . . Protection . | . . . . Artifact . | . . . . Weapon 4 | . 1 1 2 Energy Gun 3 | . 1 . 2 Energy Cannon . | . . . . Ballistic Gun 1 | . . 1 . Ballistic Cannon . | . . . . Launcher . | . . . . Special Weapon . | . . . . Impact Weapon . | . . . . Slashing Weapon . | . . . . Piercing Weapon . | . . . . Special Melee Weapon . | . . . . Unidentified Prototypes 1 | . . . 1 Parts Lost 6 | . . 1 5 Power 2 | . . 1 1 Propulsion 2 | . . . 2 Utility 1 | . . . 1 Weapon 1 | . . . 1 Highest Loss Streak 4 | . . 1 4 To Critical Strikes . | . . . . Average Slot Usage (%) 68 | . 58 73 72 Engine 8 | . 14 8 5 Leg 1 | . 5 . . Flight 20 | . 7 22 26 Device 13 | . 15 11 12 Processor 6 | . . 11 9 Energy Gun 8 | . 7 11 9 Ballistic Gun 7 | . 2 9 9 Naked Turns . | . . . . Heaviest Build 18 | 12 12 8 18 Greatest Support 20 | 20 20 8 17 Greatest Overweight (x) 1 | . 1 . 1 Average Overweight (x) . | . . . . Largest Inventory Capacity 8 | . 8 5 5 Average Capacity 5 | . 5 5 5 Most Carried 6 | . 6 5 5 Average Carried 5 | . 5 5 4 Final Capacity 8 | 8 5 5 5 Final Carried 6 | 6 5 5 5 Class Distribution -------------------- 63% | Mutant 14% | Sprinter 11% | Scavenger-Sprinter 10% | Scavenger-Mutant Dominant Class ---------------- Mutant | -10/Materials Mutant | -9/Materials Mutant | -8/Materials Resources | -11 -10 -9 -8 ----------- Run | Yrd Mat Mat Mat Matter Collected 348 | 199 49 35 65 Remotely . | . . . . Salvage Created 411 | . 49 47 315 Parts 31 | . 5 3 23 Haulers Intercepted . | . . . . Recyclers Shooed . | . . . . Parts Field Recycled . | . . . . Retrieved Matter . | . . . . Parts Self-Destructed . | . . . . Prevented . | . . . . Kills | -11 -10 -9 -8 ------- Run | Yrd Mat Mat Mat Combat Hostiles Destroyed 12 | . 3 1 8 Guns 12 | . 3 1 8 Classes Destroyed 5 | . 1 2 2 Worker 1 | . . . 1 Operator 1 | . . 1 . Swarmer 6 | . 3 . 3 Grunt 4 | . . 1 3 Sentry 2 | . . . 2 Best Kill Streak 4 | . 3 1 4 Combat Bots Only 3 | . 3 1 3 Max Kills in Single Turn 1 | . 1 1 1 Gunslinging . | . . . . Exploded . | . . . . Melee . | . . . . Uniques/NPCs Destroyed . | . . . . Combat | -11 -10 -9 -8 -------- Run | Yrd Mat Mat Mat Hostile Shots Fired 94 | . 20 12 62 Missed 26 | . 5 6 15 Damage Taken 816 | . 121 70 625 Core 233 | . 42 22 169 Absorbed by Shields . | . . . . Regen/Repaired (Parts) 49 | . . . 49 Core Remaining (%) 92 | 100 83 94 . Volleys Fired 37 | . 3 8 26 Largest 2 | . 1 2 2 Hottest 92 | . 40 63 92 Shots Fired 64 | . 3 16 45 Gun 64 | . 3 16 45 Cannon . | . . . . Launcher . | . . . . Special . | . . . . Kinetic 34 | . . 8 26 Thermal 30 | . 3 8 19 Explosive . | . . . . Electromagnetic . | . . . . Robot Hit Streak 9 | . 3 6 9 Robot Miss Streak 3 | . . 2 3 Penetration Max . | . . . . Secondary Targets 2 | . . . 2 Max Gunslinging Chain 1 | . . . 1 Shots Hit Robots 45 | . 3 11 31 Core Hits 22 | . 3 4 15 Critical Kills . | . . . . Critical Parts Destroyed . | . . . . Critical Strikes 2 | . . . 2 Burn 2 | . . . 2 Melee Attacks . | . . . . Impact . | . . . . Slashing . | . . . . Piercing . | . . . . Sneak Attacks . | . . . . Combat Hostiles . | . . . . Follow-up Attacks . | . . . . Damage Inflicted 697 | . 32 153 512 Guns 694 | . 32 153 509 Cannons . | . . . . Explosions . | . . . . Melee . | . . . . Ramming 3 | . . . 3 Kinetic 408 | . . 108 300 Thermal 286 | . 32 45 209 Explosive . | . . . . Electromagnetic . | . . . . Impact . | . . . . Slashing . | . . . . Piercing . | . . . . Highest Corruption . | . . . . Average Corruption . | . . . . Corruption Purged . | . . . . Corruption Blocked . | . . . . Overload Shots . | . . . . Overflow Damage . | . . . . Projectiles . | . . . . Explosions . | . . . . Melee . | . . . . Knockbacks . | . . . . Impact . | . . . . Kinetic . | . . . . Secondary . | . . . . Self-Inflicted Damage 1 | . . . 1 Shots . | . . . . Rammed 1 | . . . 1 Targets Rammed 1 | . . . 1 Kicked . | . . . . Crushed . | . . . . Highest Temperature 215 | . 12 33 215 Average Temperature 45 | . 7 17 62 Received Heat Transfer 318 | . 6 33 279 Siege Activations . | . . . . Robots Corrupted . | . . . . Combat Hostiles . | . . . . Parts Fried . | . . . . Impact Corruptions . | . . . . Robots Melted . | . . . . Combat Hostiles . | . . . . Parts Melted 1 | . . . 1 Heat Transferred 780 | . 75 100 605 Parts Sabotaged . | . . . . Parts Stolen . | . . . . Parts Stripped . | . . . . Power Chain Reactions . | . . . . Alert | -11 -10 -9 -8 ------- Run | Yrd Mat Mat Mat Peak Influence 378 | . 85 63 378 Initial 26 | . . 8 26 Average 119 | . 16 37 202 Maximum Alert Level 1 | . . . 1 Low Security (%) 79 | . 100 100 62 Level 1 20 | . . . 37 Level 2 . | . . . . Level 3 . | . . . . Level 4 . | . . . . Level 5 . | . . . . High Security . | . . . . Max Security . | . . . . Squads Dispatched 2 | . 1 1 . Investigation . | . . . . Extermination . | . . . . Reinforcement 2 | . 1 1 . Assault . | . . . . Garrison . | . . . . Intercept . | . . . . Searches Triggered . | . . . . Construction Impeded . | . . . . Haulers Reinforced . | . . . . Active Scanning Responses . | . . . . Cargo Convoy Interrupts . | . . . . Stealth | -11 -10 -9 -8 --------- Run | Yrd Mat Mat Mat Distress Signals 5 | . . . 5 Communications Jammed . | . . . . Distress Signals . | . . . . Times Spotted 45 | . 8 5 32 Peak Tracking Total 11 | . 5 3 11 Tactical Retreats 5 | . . . 5 Traps | -11 -10 -9 -8 ------- Run | Yrd Mat Mat Mat Traps Triggered . | . . . . Indirectly . | . . . . Trap Hack Attempts . | . . . . Triggered . | . . . . Disarmed . | . . . . Reprogrammed . | . . . . Reused . | . . . . Traps Extracted . | . . . . Installed . | . . . . Triggered . | . . . . Machines | -11 -10 -9 -8 ---------- Run | Yrd Mat Mat Mat Machines Disabled 1 | . . . 1 Max in Single Turn 1 | . . . 1 Garrison Access 1 | . . . 1 Machines Repaired . | . . . . Machines Dismantled . | . . . . Machines Sabotaged . | . . . . Overloaded Fab Kills . | . . . . Hacking | -11 -10 -9 -8 --------- Run | Yrd Mat Mat Mat Machines Accessed 9 | . 3 4 2 Terminals 7 | . 3 4 . Fabricators . | . . . . Repair Stations 1 | . . . 1 Recycling Units . | . . . . Scanalyzers . | . . . . Garrison Access 1 | . . . 1 Total Hacks 35 | . 11 11 13 Successful 17 | . 6 3 8 Failed 18 | . 5 8 5 Catastrophic 3 | . 3 . . Database Lockouts . | . . . . Manual 22 | . 11 11 . Terminals 22 | . 11 11 . Fabricators . | . . . . Repair Stations 12 | . . . 12 Recycling Units . | . . . . Scanalyzers . | . . . . Garrison Access 1 | . . . 1 Terminal Hacks 4 | . 3 1 . Part Schematic 1 | . 1 . . Terminal Index 2 | . 1 1 . Unreport Threat 1 | . 1 . . Fabricator Hacks . | . . . . Repair Station Hacks 7 | . . . 7 Scan Component 4 | . . . 4 Repair 3 | . . . 3 Recycling Unit Hacks . | . . . . Scanalyzer . | . . . . Garrison Access Hacks 1 | . . . 1 Seal Access 1 | . . . 1 Unauthorized Hacks 5 | . 3 2 . Terminals 5 | . 3 2 . Botnet 5 | . 3 2 . Fabricators . | . . . . Repair Stations . | . . . . Recycling Units . | . . . . Scanalyzers . | . . . . Garrison Access . | . . . . Data Cores Recovered . | . . . . Used . | . . . . Hacking Detections 8 | . 3 4 1 Full Trace Events 1 | . 1 . . Feedback Events . | . . . . Feedback Blocked . | . . . . Robot Schematics Acquired . | . . . . Robots Built . | . . . . Authchips . | . . . . Time . | . . . . Total Robot Build Rating . | . . . . Part Schematics Acquired 1 | . 1 . . Parts Built . | . . . . Authchips . | . . . . Time . | . . . . Total Part Build Rating . | . . . . Parts Repaired 3 | . . . 3 Time 78 | . . . 78 Parts Recycled . | . . . . Recycled Matter . | . . . . Retrieved Matter . | . . . . Retrieved Components . | . . . . Parts Scanalyzed . | . . . . Part Schematics Acquired . | . . . . Parts Damaged . | . . . . Bothacking | -11 -10 -9 -8 ------------ Run | Yrd Mat Mat Mat Used RIF Installer . | . . . . Robots Hacked . | . . . . Non-combat . | . . . . Combat . | . . . . Robot Hacks Applied . | . . . . Relay Couplers Released . | . . . . Fabnet Peak Effective % . | . . . . Robots Rewired . | . . . . Allies Hacked . | . . . . Hacks Repelled . | . . . . Allies | -11 -10 -9 -8 -------- Run | Yrd Mat Mat Mat Total Allies . | . . . . Largest Group . | . . . . Highest-Rated Group . | . . . . Highest-Rated Ally . | . . . . Total Orders . | . . . . Ally Attacks . | . . . . Total Damage . | . . . . Kills . | . . . . Allies Corrupted . | . . . . Allies Melted . | . . . . Intel | -11 -10 -9 -8 ------- Run | Yrd Mat Mat Mat Robot Analysis Total . | . . . . Derelict Logs Recovered . | . . . . Drone Launches . | . . . . Drone Recoveries . | . . . . Exploration | -11 -10 -9 -8 ------------- Run | Yrd Mat Mat Mat Turns Passed 638 | . 189 107 342 Spaces Moved 668 | 1 199 186 282 Core 101 | . 101 . . Treads . | . . . . Legs 29 | 1 27 . 1 Wheels . | . . . . Hover 4 | . 4 . . Flight 534 | . 67 186 281 Fastest Speed 29 | 120 37 37 29 Average Speed 49 | 120 70 37 42 Slowest Speed 120 | 120 120 37 120 Overloaded Moves . | . . . . Propulsion Burnouts . | . . . . Robots Hopped 1 | . . . 1 Cave-ins Triggered . | . . . . Exploration Rate (%) 24 | 2 39 24 34 Regions Visited 3 Branch Regions . Pre-discovered Areas . | . . . . Known Exits Taken 2 | . 1 1 . Unknown Exits Taken 1 | 1 . . . Scrap Searched . | . . . . Spaces Dug . | . . . . Terrain Destroyed . | . . . . Melee . | . . . . Projectile . | . . . . AOE . | . . . . Terrain Rammed . | . . . . Walls Destroyed . | . . . . Machines Disabled . | . . . . Actions | -11 -10 -9 -8 --------- Run | Yrd Mat Mat Mat Total 917 | . 247 209 461 Wait 162 | . 12 13 137 Move 663 | . 198 185 280 Hop 1 | . . . 1 Pick Up 6 | . 4 1 1 Fast Attach 18 | . 8 1 9 Attach 5 | . 4 . 1 Detach 4 | . 4 . . Swap 4 | . 2 . 2 Drop 16 | . 12 1 3 Fire 37 | . 3 8 26 Melee . | . . . . Ram 1 | . . . 1 Kick . | . . . . Crush . | . . . . Escape Stasis . | . . . . Rewire . | . . . . Trap . | . . . . Miscellaneous . | . . . . Route ------- -11/Scrapyard -10/Materials (discovered 2 exits: *Mat / [*Min]) -9/Materials -8/Materials History --------- Turn | Location | Event 1 | -11/Scrapyard | Discovered new exit (range 0) 1 | -11/Scrapyard | Entered Materials 121 | -10/Materials | Discovered new exit (range 15) 189 | -10/Materials | Discovered new exit (range 4) 190 | -10/Materials | Identified exit to Materials 190 | -10/Materials | Entered another Materials area 190 | -9/Materials | Evolved 2 slots: Propulsion x2 296 | -9/Materials | Discovered new exit (range 4) 297 | -9/Materials | Identified exit to Materials 297 | -9/Materials | Entered another Materials area 297 | -8/Materials | Evolved 2 slots: Utility x2 356 | -8/Materials | Repaired Flight Unit 454 | -8/Materials | Repaired Flight Unit 481 | -8/Materials | Repaired Flight Unit 639 | -8/Materials | Self-destructed Last Messages --------------- 00516_ Flight Unit melted. 00516_ S-10 Pest destroyed. 00523_ Dropped Lgt. Angular Momentum Engine. 00524_ Acquired Lgt. Ion Engine. 00525_ Acquired 15 matter. 00525_ W-25 Informer sends out distress signal. 00526_ Acquired Flight Unit. 00527_ M-13 Machinist repairs U-05 Engineer. 00530_ S-10 Pest destroyed. 00576_ K-01 Serf collects debris. 00595_ W-25 Informer sends out distress signal. 00600_ K-01 Serf cleans the Terminal. 00604_ Flight Unit destroyed. 00604_ Critical hit (Burn: +37). 00605_ U-05 Engineer builds a Door. 00621_ Y-45 Defender destroyed. 00627_ Lgt. Ion Engine destroyed. 00631_ Flight Unit destroyed. 00633_ Autogun destroyed. Map ----- +----------------------------------------------------+ | ?????????????????????????????????????????????????? | | ?????????????????????????????????????????????????? | | ?????????????????????????????????????????????????? | | ?????????????????????????????????????????????????? | | ?????????????????????????????????????????????????? | | ?????????????????????????????????????????????????? | | ?????????????????????????????????????????????????? | | ?????????????????????????????????????????????????? | | ?????????????????????????????????????????????????? | | ?????????????????????????????????????????????????? | | ?????????????????????????????????????????????????? | | ?????????????????????????????????????????????????? | | ?????????????????????????????????????????????????? | | ?????????????????????????????????????????????????? | | ?????????????????????????????????????????????????? | | ?????????????????????????????????????????????????? | | ?????????????????????###?????????????????????????? | | ?????????????????????# ???? #??????????????????? | | ?????????????????????# """? #??????????????????? | | ?????????????????????# """"" #??????????????????? | | ?????????????????????# """"" #??????????????????? | | ?????????????????????# """"" #??????????????????? | | ?????????????????????#" """ #??????????????????? | | ?????????????????????#T !#??????????????????? | | ?????????????????????#" #??????????????????? | | ?????????????????????# =@%! #??????????????????? | | ?????????????????????#####g####??????????????????? | | ???????????????????????# gY ########+#####??????? | | ???????????????????????# Yg ????? | | ???????????????????????#* ????? | | ???????????????????????# u ????? | | ???????????????????????#[ ##########/###??????? | | ???????????????????????## ##???????????????????? | | ???????????? ??????# #????????????????????? | | ???????????? # #????????????????????? | | ????????????????""" + #????????????????????? | | ????????????????"""""" # #????????????????????? | | ??????????????????""" # #????????????????????? | | ??????????????????#####?# #????????????????????? | | ????????????????????????# #????????????????????? | | ????????????????????????# #????????????????????? | | ????????????????????????# #????????????????????? | | ?????????????????######## #????????????????????? | | ?????????????????# T [ #????????????????????? | | ?????????????????# #????????????????????? | | ?????????????????# #????????????????????? | | ?????????????????# % ##????????????????????? | | ?????????????????# "#???####?????????????? | | ?????????????????#! """ T#?? ????????????? | | ?????????????????# """ "#??""" ???????????? | +----------------------------------------------------+ Best States ------------- Heat Dissipation 45 Energy Generation 18 Energy Capacity 250 Matter Stores 299 Matter Capacity 300 Sight Range 16 Robot Scan Range 14 Terrain Scan Density 10 ECM Strength 1 Evasion (%) 64 Item Schematics ----------------- Lgt. Ion Engine | -10/Materials | Hacked Robot Schematics ------------------ None Fabricated ------------ Nothing Alien Tech Used ----------------- None Achievements -------------- None Challenges ------------ None Game ------ Seed GrapheneShadingRigger Manual? 0 Play Time 00:17:11 Cumulative 151.6 hours Start 2024.05.05 @ 13:37:57 End 2024.05.05 @ 13:51:37 Sessions 1 Manual Loads 0 Difficulty Rogue Special Mode None Game No. 297 Rogue 297 Adventurer 0 Explorer 0 Win Type - Total 0 Types 0/0/0/0/0/0/0/0/0 Lore% 37 Gallery% 51 Achievement% 37 Wizard Run 0 Options --------- Layout 1 ASCII 0 Keyboard 0 Movement Mouse Keybinds 0 Fullscreen 1 Font 24/Smallcaps Map View 50x40 Zoom Use 0% Tactical HUD 1 Map Filters NONE Filters NONE Steam 1 RUN: 796edba9-0606-4458-a921-9989a716fde7